fUSD/lending_fUSD_20251027
["ID","MTS","AMOUNT","RATE_DAILY","PERIOD"]
[392506240,1761585048153,-151.0,0.00027397,31]
[392506241,1761585048162,-240.743796,0.00027397,31]
[392506242,1761585048172,-945.183785,0.00027397,31]
[392506243,1761585048181,-945.183785,0.00027397,31]
[392506244,1761585048190,-151.0,0.00027397,31]
[392506245,1761585048276,-945.183785,0.00027397,31]
[392506246,1761585048286,-945.183785,0.00027397,31]
[392506247,1761585048296,-151.0,0.00027397,31]
[392506248,1761585048306,-945.183785,0.00027397,31]
[392506249,1761585048315,-151.0,0.00027397,31]
[392506250,1761585048324,-945.183785,0.00027397,31]
[392506251,1761585048334,-151.0,0.00027397,31]
[392506252,1761585048343,-945.183792,0.00027397,31]
[392506253,1761585048352,-151.0,0.00027397,31]
[392506254,1761585048361,-151.0,0.00027397,31]
[392506255,1761585048370,-247.09937,0.00027397,31]
[392506256,1761585048381,-151.0,0.00027397,30]
[392506257,1761585048390,-151.0,0.00027397,30]
[392506258,1761585048399,-151.0,0.00027397,30]
[392506259,1761585048408,-515.106399,0.00027397,31]
[392506260,1761585048419,-151.0,0.00027397,30]
[392506261,1761585048428,-466.06,0.000274,2]
[392506262,1761585048437,-466.06,0.000274,2]
[392506263,1761585048446,-2063.35627,0.0002748,2]
[392506264,1761585048455,-643.69126289,0.00027605,2]
[392506265,1761585048464,-151.51,0.0002767,7]
[392506266,1761585048475,-548.12,0.00027825,2]
[392506267,1761585048485,-548.12,0.00027825,2]
[392506268,1761585048496,-166.66,0.000279,2]
[392506269,1761585048505,-1000.0,0.00027902,2]
[392506270,1761585048516,-548.12,0.00027925,2]
[392506271,1761585048525,-548.12,0.00027925,2]
[392506272,1761585048534,-2063.35627,0.0002798,2]
[392506273,1761585048543,-548.12,0.00028025,2]
[392506274,1761585048552,-151.0,0.00028135,31]
[392506275,1761585048561,-668.47344753,0.00028145,2]
[392506276,1761585048571,-908.87,0.00028174,2]
[392506277,1761585048580,-548.12,0.00028195,2]
[392506278,1761585048590,-548.12,0.00028195,2]
[392506279,1761585048599,-548.12,0.00028195,2]
[392506280,1761585048609,-548.12,0.00028195,2]
[392506281,1761585048618,-548.12,0.00028195,2]
[392506282,1761585048628,-548.12,0.00028195,2]
[392506283,1761585048637,-403.04,0.00028195,2]
[392506284,1761585048648,-548.12,0.00028195,2]
[392506285,1761585048658,-19129.895879,0.00028336,3]
[392506286,1761585048670,-697.12,0.00028369,2]
[392506287,1761585048681,-15447.6334099,0.00028377,2]
[392506288,1761585048690,-2063.35627,0.0002848,2]
[392506289,1761585048700,-948.58,0.00028493,2]
[392506290,1761585048710,-166.22150111,0.00028512,2]
[392506291,1761585048724,-548.12,0.00028647,2]
[392506292,1761585048736,-159.0,0.00028767,30]
[392506293,1761585048757,-166.66,0.00028792,2]
[392506294,1761585048766,-697.0,0.000288,5]
[392506295,1761585048776,-877.6,0.000288,7]
[392506296,1761585048785,-2871.0,0.00028841,2]
[392506297,1761585048795,-2063.35627,0.0002898,2]
[392506298,1761585048804,-18818.2610373,0.00028994,3]
[392506299,1761585048814,-19129.895879,0.00029003,3]
[392506300,1761585048824,-500.0,0.00029007,28]
[392506301,1761585048834,-500.0,0.00029007,28]
[392506302,1761585048843,-1094.02,0.00029017,2]
[392506303,1761585048854,-548.12,0.00029017,2]
[392506304,1761585048865,-548.12,0.00029017,2]
[392506305,1761585048875,-1234.0,0.00029036,3]
[392506306,1761585048884,-168.0,0.00029064,2]
[392506307,1761585048893,-908.87,0.00029156,2]
[392506308,1761585048903,-677.43752035,0.00029294,10]
[392506309,1761585048912,-19129.895879,0.00029295,3]
[392506310,1761585048922,-18818.2610373,0.00029295,3]
[392506311,1761585048931,-3832.0,0.00029297,7]
[392506312,1761585048941,-3832.0,0.00029305,2]
[392506313,1761585048951,-668.4734475,0.00029413,2]
[392506314,1761585048965,-500.0,0.00029437,28]
[392506315,1761585048974,-500.0,0.00029437,28]
[392506316,1761585048984,-500.0,0.00029457,28]
[392506317,1761585048994,-500.0,0.00029457,28]
[392506318,1761585049004,-500.0,0.00029457,28]
[392506319,1761585049014,-500.0,0.00029457,28]
[392506320,1761585049024,-500.0,0.00029457,7]
[392506321,1761585049036,-500.0,0.00029457,28]
[392506322,1761585049047,-500.0,0.00029457,28]
[392506323,1761585049057,-500.0,0.00029457,28]
[392506324,1761585049066,-231.52496769,0.00029457,28]
[392506325,1761585049076,-500.0,0.00029457,28]
[392506326,1761585049085,-15447.6334099,0.00029458,2]
[392506327,1761585049095,-2063.35626,0.0002948,2]
[392506328,1761585049104,-151.51,0.0002956,30]
[392506329,1761585049114,-165.48,0.00029589,2]
[392506330,1761585049124,-156.47,0.00029675,2]
[392506331,1761585049133,-166.66,0.00029683,2]
[392506332,1761585049143,-18818.2610373,0.00029697,3]
[392506333,1761585049151,-13833.59778058,0.00029707,3]
[392506334,1761585049483,-515.106399,0.00027397,31]
[392506335,1761585049494,-151.0,0.00027397,31]
[392506336,1761585049504,-151.0,0.00027397,30]
[392506337,1761585049514,-927.35336414,0.00029707,3]
[392506338,1761585049525,-3755.54023686,0.00029707,3]
[392506339,1761585049536,-613.40449742,0.00029707,3]
[392506340,1761585049545,-721.81550258,0.00029716,3]
[392506341,1761585049751,-515.106399,0.00027397,31]
[392506342,1761585049762,-151.0,0.00027397,31]
[392506343,1761585049773,-166.726177,0.00027397,30]
[392506344,1761585049797,-515.106399,0.00027397,31]
[392506345,1761585049819,-227.23546,0.00027397,31]
[392506346,1761585049839,-515.106399,0.00027397,31]
[392506347,1761585049857,-515.106399,0.00027397,31]
[392506348,1761585049871,-515.106399,0.00027397,31]
[392506349,1761585049888,-515.106399,0.00027397,31]
[392506350,1761585049907,-515.106399,0.00027397,31]
[392506351,1761585049925,-515.106399,0.00027397,31]
[392506352,1761585049944,-515.106399,0.00027397,31]
[392506353,1761585049965,-515.106399,0.00027397,31]
[392506354,1761585049984,-6071.76085869,0.00029716,3]
[392506355,1761585050013,-1082.9728668,0.00029716,3]
[392506356,1761585114188,943.0,0.00037121,120]
[392506359,1761585145565,-151.0,0.00019991,2]
[392506365,1761585333901,135.90992144,0.00013699,2]
[392506366,1761585333923,322.99007856,0.00013699,2]
[392506368,1761585452280,250.0,0.00017,2]
[392506369,1761585682550,2285.65449939,0.000189,2]
[392506374,1761585908100,93789.10542205,0.00015,2]
[392506375,1761585908140,35757.83528205,0.00015,2]
[392506376,1761585910604,455.88760502,0.000154,2]
[392506378,1761586074981,9418.91805861,0.00018,2]
[392506411,1761586232580,-300.0,0.00019,2]
[392506412,1761586232589,-173.9211061,0.00019,2]
[392506413,1761586232599,-150.0,0.00019,2]
[392506414,1761586232607,-1411.99399171,0.0002,2]
[392506415,1761586232618,-1363.00162195,0.0002,2]
[392506416,1761586232631,-68.13670514,0.0002,2]
[392506417,1761586232641,-458.9,0.00020187,2]
[392506418,1761586232652,-151.0,0.00024071,2]
[392506419,1761586232663,-151.0,0.000241,2]
[392506420,1761586232672,-151.0,0.00024283,2]
[392506421,1761586232682,-151.0,0.00024622,2]
[392506422,1761586232691,-173.9211061,0.00024832,2]
[392506423,1761586232702,-500.0,0.000249,2]
[392506424,1761586232711,-500.0,0.00024932,2]
[392506425,1761586232720,-159.0,0.00025,7]
[392506426,1761586232731,-250.0,0.00025105,2]
[392506427,1761586232741,-458.9,0.00026676,2]
[392506428,1761586232751,-300.0,0.0002726,2]
[392506429,1761586232762,-1200.0,0.0002726,2]
[392506430,1761586232771,-617.088,0.00027261,16]
[392506431,1761586232783,-29110.16832062,0.00027262,2]
[392506451,1761586238427,-500.0,0.0002726,2]
[392506452,1761586238438,-278.58817429,0.0002726,2]
[392506453,1761586238459,-221.41182571,0.0002726,2]
[392506454,1761586238468,-500.0,0.0002726,2]
[392506455,1761586238478,-500.0,0.0002726,2]
[392506456,1761586238489,-500.0,0.0002726,2]
[392506457,1761586238498,-237.25635838,0.0002726,2]
[392506458,1761586238507,-500.0,0.0002726,2]
[392506459,1761586238516,-500.0,0.0002726,2]
[392506460,1761586238525,-500.0,0.0002726,2]
[392506461,1761586238533,-4090.03557938,0.00027262,2]
[392506462,1761586238543,-1000.0,0.00027262,2]
[392506463,1761586238551,-250.0,0.00027362,2]
[392506464,1761586238670,-838.61,0.00027397,30]
[392506465,1761586238688,-2789.0,0.00027482,2]
[392506466,1761586238698,-521.0,0.0002756,2]
[392506467,1761586238708,-2789.0,0.00027622,7]
[392506468,1761586238718,-152.0,0.0002778,3]
[392506470,1761586238728,-152.0,0.0002778,3]
[392506472,1761586238739,-152.0,0.0002778,3]
[392506473,1761586238751,-1237.0,0.0002778,3]
[392506474,1761586238761,-152.0,0.0002778,3]
[392506475,1761586238772,-152.0,0.0002778,3]
[392506476,1761586238784,-1237.0,0.0002778,3]
[392506477,1761586238796,-152.0,0.0002778,3]
[392506478,1761586238807,-152.0,0.0002778,3]
[392506479,1761586238818,-1237.0,0.0002778,3]
[392506480,1761586238829,-152.0,0.0002778,3]
[392506481,1761586238840,-152.0,0.0002778,3]
[392506482,1761586238851,-152.0,0.0002778,3]
[392506483,1761586238861,-152.0,0.0002778,3]
[392506484,1761586238871,-152.0,0.0002778,3]
[392506485,1761586238883,-1237.0,0.0002778,3]
[392506486,1761586238894,-152.0,0.0002778,3]
[392506487,1761586238905,-152.0,0.0002778,3]
[392506488,1761586238917,-1237.0,0.0002778,3]
[392506489,1761586238928,-152.0,0.0002778,3]
[392506490,1761586238940,-152.0,0.0002778,3]
[392506491,1761586238951,-152.0,0.0002778,3]
[392506492,1761586238961,-1237.0,0.0002778,3]
[392506493,1761586238971,-152.0,0.0002778,3]
[392506494,1761586238983,-152.0,0.0002778,3]
[392506495,1761586238993,-152.0,0.0002778,3]
[392506496,1761586239006,-1237.0,0.0002778,3]
[392506497,1761586239017,-152.0,0.0002778,3]
[392506498,1761586239029,-152.0,0.0002778,3]
[392506499,1761586239039,-294.0,0.0002778,3]
[392506500,1761586239052,-1237.0,0.0002778,3]
[392506501,1761586239064,-152.0,0.0002778,3]
[392506502,1761586239074,-152.0,0.0002778,3]
[392506503,1761586239086,-1237.0,0.0002778,3]
[392506504,1761586239097,-152.0,0.0002778,3]
[392506505,1761586239109,-299.69683766,0.0002778,3]
[392506506,1761586239120,-1237.0,0.0002778,3]
[392506507,1761586239130,-152.0,0.0002778,3]
[392506508,1761586239140,-1237.0,0.0002778,3]
[392506509,1761586239151,-152.0,0.0002778,3]
[392506510,1761586239162,-1201.0,0.0002778,3]
[392506511,1761586239172,-152.0,0.0002778,3]
[392506512,1761586239183,-288.0,0.0002778,3]
[392506513,1761586239193,-151.0,0.00027983,2]
[392506514,1761586239204,-151.0,0.00027983,2]
[392506515,1761586239215,-151.0,0.00027983,2]
[392506516,1761586239225,-151.0,0.00027983,2]
[392506517,1761586239237,-151.0,0.00027983,2]
[392506518,1761586239250,-151.0,0.00027983,2]
[392506519,1761586239261,-151.0,0.00027983,2]
[392506520,1761586239273,-151.0,0.00027983,2]
[392506521,1761586239285,-151.0,0.00027983,2]
[392506522,1761586239299,-151.0,0.00027983,2]
[392506523,1761586239313,-151.0,0.00027983,2]
[392506524,1761586239323,-151.0,0.00027983,2]
[392506525,1761586239334,-151.0,0.00027983,2]
[392506526,1761586239345,-151.0,0.00027983,2]
[392506527,1761586239355,-151.0,0.00027983,2]
[392506528,1761586239365,-151.0,0.00027983,2]
[392506529,1761586239375,-268.028115,0.00027983,2]
[392506530,1761586239385,-151.0,0.00027983,2]
[392506531,1761586239396,-151.0,0.00027983,2]
[392506532,1761586239406,-151.0,0.00027983,2]
[392506533,1761586239417,-151.0,0.00027983,2]
[392506534,1761586239428,-151.0,0.00027983,2]
[392506535,1761586239439,-151.0,0.00027983,2]
[392506536,1761586239449,-151.0,0.00027983,2]
[392506537,1761586239459,-151.0,0.00027983,2]
[392506538,1761586239470,-151.0,0.00027983,2]
[392506539,1761586239480,-250.0,0.00027983,2]
[392506540,1761586239490,-250.0,0.00027983,2]
[392506541,1761586239501,-250.0,0.00027983,2]
[392506542,1761586239510,-250.0,0.00027983,2]
[392506543,1761586239520,-25.40528387,0.00027998,2]
[392506544,1761586239745,-304.79231883,0.00027998,2]
[392506545,1761586239756,-500.0,0.00027998,2]
[392506546,1761586239767,-188.27077477,0.00027998,2]
[392506547,1761586239778,-155.53739813,0.00027998,2]
[392506548,1761586239789,-498.52383837,0.00027998,2]
[392506549,1761586239800,-500.0,0.00027998,2]
[392506550,1761586239810,-500.0,0.00027998,2]
[392506551,1761586239821,-415.19456375,0.00027998,2]
[392506552,1761586239831,-7746.4258201,0.00028,2]
[392506553,1761586239843,-13417.99984744,0.00028,2]
[392506556,1761586240316,-6579.83900032,0.00028,2]
[392506557,1761586240422,-820.37877555,0.00028,2]
[392506558,1761586240476,-400.0,0.00028,2]
[392506559,1761586240636,-4973.0868,0.00028,2]
[392506560,1761586240692,-721.15767363,0.00028,2]
[392506561,1761586240745,-2050.77884625,0.00028,2]
[392506592,1761586243384,-30.53207227,0.00025048,2]
[392506593,1761586243640,-120.46792773,0.00025048,2]
[392506594,1761586243649,-1599.81877083,0.00028,2]
[392507479,1761586362614,500.0,0.00037118,50]
[392507480,1761586396257,313.44831549,0.00037118,50]
[392507484,1761586582302,1860.0,0.00031507,120]
[392507490,1761586749628,205.97,0.00016712,2]
[392507491,1761586795222,448.43,0.00031507,120]
[392507493,1761586839794,154.69192008,0.00016712,2]
[392507494,1761586857302,1600.0,0.00027152,120]
[392507495,1761586857654,1600.0,0.00030546,120]
[392507498,1761587233872,-286.90992144,0.000244,60]
[392507499,1761587233894,-45.39007856,0.000244,2]
[392507503,1761587276358,292.535,0.00031507,120]
[392507504,1761587353145,-118.35694206,0.000244,2]
[392507505,1761587353166,-1655.59992659,0.000245,2]
[392507506,1761587353184,-82.11460101,0.00024617,2]
[392507545,1761587431667,-151.0,0.00024724,2]
[392507548,1761587431676,-151.0,0.00024743,2]
[392507550,1761587431686,-151.0,0.00024759,2]
[392507552,1761587431695,-151.0,0.00024759,2]
[392507554,1761587431704,-500.0,0.00024932,2]
[392507556,1761587431717,-169.96809682,0.00025,10]
[392507558,1761587431727,-1054.58951438,0.00026647,2]
[392507560,1761587431740,-145.41048562,0.00026647,2]
[392507562,1761587431749,-6914.11,0.00026648,2]
[392507564,1761587431759,-440.32,0.00026649,2]
[392507566,1761587431769,-195.0,0.0002684,2]
[392507568,1761587431779,-200.0,0.00027085,2]
[392507570,1761587431789,-195.0,0.00027172,2]
[392507572,1761587431799,-300.0,0.00027265,2]
[392507574,1761587431809,-300.0,0.00027265,2]
[392507577,1761587431820,-500.0,0.00027266,2]
[392507580,1761587431829,-500.0,0.00027266,2]
[392507583,1761587431839,-500.0,0.00027266,2]
[392507585,1761587431850,-2122.41,0.00027267,2]
[392507587,1761587431860,-177.13875,0.00027421,2]
[392507603,1761587432002,-115.2927366,0.00027516,2]
[392507605,1761587432014,-718.51105662,0.00027516,2]
[392507607,1761587432023,-850.91,0.0002755,3]
[392507609,1761587432032,-154.55081173,0.00027618,2]
[392507613,1761587432060,-1445.44918827,0.00027618,2]
[392507615,1761587432068,-872.61123685,0.00027619,2]
[392507617,1761587432077,-6631.0713,0.0002762,2]
[392507619,1761587432087,-233.9129,0.0002762,2]
[392507621,1761587432096,-279.2671,0.0002762,2]
[392507623,1761587432105,-2138.5755,0.0002762,2]
[392507625,1761587432114,-833.80379323,0.00027702,2]
[392507627,1761587432123,-151.0,0.00027703,2]
[392507629,1761587432131,-151.0,0.00027703,2]
[392507630,1761587432140,-151.0,0.00027703,2]
[392507631,1761587432149,-151.0,0.00027703,2]
[392507632,1761587432158,-151.0,0.00027703,2]
[392507633,1761587432167,-151.0,0.00027703,2]
[392507634,1761587432177,-151.0,0.00027703,2]
[392507635,1761587432185,-151.0,0.00027703,2]
[392507636,1761587432194,-151.0,0.00027703,2]
[392507637,1761587432203,-151.0,0.00027703,2]
[392507638,1761587432211,-151.0,0.00027703,2]
[392507639,1761587432220,-151.0,0.00027703,2]
[392507640,1761587432229,-151.0,0.00027703,2]
[392507641,1761587432238,-198.92860176,0.00027703,2]
[392507642,1761587432247,-231.13832188,0.00027719,2]
[392507643,1761587432255,-500.0,0.00027719,2]
[392507644,1761587432264,-500.0,0.00027719,2]
[392507645,1761587432273,-348.96668686,0.00027719,2]
[392507646,1761587432281,-340.63619463,0.00027719,2]
[392507647,1761587432290,-493.671,0.00027719,17]
[392507648,1761587432299,-67233.80381812,0.0002772,2]
[392507650,1761587432308,-22328.74715822,0.0002772,2]
[392507651,1761587432317,-20238.00278326,0.0002772,2]
[392507652,1761587432326,-18595.97123277,0.0002772,2]
[392507653,1761587432335,-500.0,0.00027773,5]
[392507654,1761587432344,-500.0,0.00027773,5]
[392507655,1761587432353,-1000.0,0.00027888,2]
[392507657,1761587432363,-5837.6711467,0.00027888,2]
[392507659,1761587432375,-4957.88921585,0.00027888,2]
[392507661,1761587432384,-500.3556956,0.00027973,2]
[392507663,1761587432392,-20852.694694,0.00027988,2]
[392507665,1761587432402,-21983.79889969,0.00027988,2]
[392507667,1761587432414,-3538.09330091,0.00027988,2]
[392507669,1761587432423,-1109.1189277,0.00027988,2]
[392507671,1761587432432,-12350.25424198,0.00027988,2]
[392507674,1761587432442,-8918.05176192,0.00027988,2]
[392507676,1761587432452,-511.18385705,0.00027988,2]
[392507678,1761587432463,-785.70198875,0.00027988,2]
[392507680,1761587432472,-151.0,0.00027988,31]
[392507682,1761587432481,-2068.73734186,0.00028,2]
[392507746,1761587437450,-151.0,0.00024782,2]
[392507747,1761587437460,-500.0,0.00027265,2]
[392507748,1761587437470,-305.92253179,0.00027265,2]
[392507749,1761587437479,-500.0,0.00027265,2]
[392507750,1761587437489,-500.0,0.00027265,2]
[392507751,1761587437499,-500.0,0.00027265,2]
[392507752,1761587437508,-500.0,0.00027265,2]
[392507753,1761587437518,-500.0,0.00027265,2]
[392507754,1761587437528,-179.89805749,0.00027265,2]
[392507755,1761587437540,-320.10194251,0.00027265,2]
[392507756,1761587437550,-158.38305749,0.00028,2]
[392507757,1761587437561,-826.27538008,0.00028,2]
[392507758,1761587437571,-5725.17018976,0.00028,2]
[392507759,1761587437583,-4987.25782081,0.00028,2]
[392507760,1761587437603,-3657.62228039,0.00028,2]
[392507761,1761587437612,-1743.0,0.00028077,7]
[392507762,1761587437622,-1202.57,0.00028082,2]
[392507763,1761587437631,-860.34,0.00028191,2]
[392507764,1761587437645,-194.87,0.000282,2]
[392507765,1761587437655,-282.4,0.000282,2]
[392507766,1761587437664,-215.18,0.000282,2]
[392507767,1761587437673,-9999.99,0.00028203,2]
[392507768,1761587437683,-1191.31003675,0.00028203,2]
[392507769,1761587437698,-3127.35095761,0.00028203,2]
[392507770,1761587437710,-4585.78900564,0.00028203,2]
[392507771,1761587437719,-4317.19,0.00028203,2]
[392507773,1761587437729,-150.0,0.0002821,2]
[392507775,1761587437738,-2500.0,0.00028299,2]
[392507776,1761587437747,-1743.0,0.00028349,2]
[392507777,1761587437756,-187.45840657,0.00028349,2]
[392507778,1761587437766,-511.01,0.00028389,2]
[392507779,1761587437775,-1743.0,0.00028399,2]
[392507780,1761587437784,-516.0,0.00028538,2]
[392507781,1761587437794,-1197.23,0.00028626,2]
[392507782,1761587437803,-516.0,0.00028699,7]
[392507783,1761587437814,-238.0,0.00028822,2]
[392507784,1761587437823,-515.0,0.00028881,7]
[392507785,1761587437837,-515.0,0.00028901,2]
[392507786,1761587437846,-151.0,0.00028902,31]
[392507787,1761587437855,-151.0,0.00028902,31]
[392507788,1761587437866,-10795.56036249,0.00028902,2]
[392507789,1761587437877,-1015.0,0.00028903,2]
[392507790,1761587437886,-515.0,0.00028945,2]
[392507791,1761587437896,-831.0,0.00028947,2]
[392507792,1761587437906,-150.0,0.00028964,2]
[392507793,1761587437915,-442.28,0.00028985,2]
[392507794,1761587437925,-500.0,0.00029008,28]
[392507795,1761587437934,-500.0,0.00029008,28]
[392507796,1761587437945,-500.0,0.00029008,28]
[392507797,1761587437954,-500.0,0.00029008,28]
[392507798,1761587437964,-500.0,0.00029008,7]
[392507799,1761587437973,-500.0,0.00029008,28]
[392507800,1761587437984,-500.0,0.00029008,28]
[392507801,1761587437993,-217.748224,0.00029009,31]
[392507802,1761587438003,-516.0,0.00029071,2]
[392507803,1761587438013,-515.0,0.00029075,2]
[392507804,1761587438026,-500.0,0.00029117,28]
[392507805,1761587438036,-500.0,0.00029117,28]
[392507806,1761587438045,-1015.0,0.00029118,2]
[392507807,1761587438055,-515.0,0.00029194,2]
[392507808,1761587438065,-515.0,0.00029205,2]
[392507809,1761587438074,-282.4,0.00029257,2]
[392507810,1761587438084,-18598.6227207,0.000293,3]
[392507811,1761587438093,-511.01,0.0002931,2]
[392507812,1761587438103,-33200.2039,0.0002932,2]
[392507813,1761587438113,-217.748224,0.0002932,31]
[392507814,1761587438123,-151.0,0.0002932,31]
[392507815,1761587438132,-515.0,0.00029327,2]
[392507816,1761587438142,-515.0,0.00029349,2]
[392507817,1761587438151,-2743.10930904,0.00029358,3]
[392507818,1761587438164,-499.82491675,0.00029358,3]
[392507819,1761587438214,-15355.68849491,0.00029358,3]
[392507820,1761587438226,-5886.9623709,0.00029368,2]
[392507821,1761587438236,-515.0,0.00029477,2]
[392507822,1761587438246,-1425.0,0.0002951,2]
[392507823,1761587438255,-166.66,0.00029582,2]
[392507824,1761587438265,-1425.0,0.00029713,2]
[392507825,1761587438274,-221.14728307,0.00029716,3]
[392507826,1761587438284,-500.0,0.00029716,28]
[392507827,1761587438294,-500.0,0.00029716,28]
[392507828,1761587438304,-500.0,0.00029716,28]
[392507829,1761587438313,-4189.73671767,0.00029788,2]
[392507833,1761587439558,-7275.0686658,0.00029788,2]
[392507834,1761587439568,-511.01,0.00029795,2]
[392507835,1761587439577,-1000.0,0.00029799,2]
[392507836,1761587439587,-37197.2454413,0.00029805,3]
[392507837,1761587439596,-511.01,0.00029805,2]
[392507838,1761587439606,-252.630114,0.00029805,31]
[392507839,1761587439615,-4102.33067448,0.00029815,2]
[392507840,1761587439627,-292.21359082,0.00029815,2]
[392507841,1761587439641,-11570.1357347,0.00029815,2]
[392507842,1761587439650,-1389.41,0.00029815,2]
[392507843,1761587439659,-999.99,0.00029815,2]
[392507844,1761587439668,-9999.99,0.00029815,2]
[392507845,1761587439677,-4920.4742653,0.00029815,2]
[392507846,1761587439717,-3511.5757347,0.00029815,2]
[392507847,1761587439726,-904.61,0.00029815,10]
[392507848,1761587439734,-299.99,0.00029815,12]
[392507849,1761587439743,-709.1934653,0.00029815,90]
[392507907,1761587445530,-195.973402,0.00027988,31]
[392507909,1761587445550,-151.0,0.00027988,31]
[392507911,1761587445560,-195.973402,0.00027988,31]
[392507912,1761587445569,-195.973402,0.00027988,31]
[392507913,1761587445579,-151.0,0.00027988,31]
[392507914,1761587445588,-165.71812401,0.00028902,31]
[392507915,1761587492484,211.45,0.00013558,2]
[392507916,1761587492707,211.45,0.00014271,2]
[392507917,1761587492949,211.45,0.00014985,2]
[392507918,1761587493149,211.45,0.00015699,2]
[392507919,1761587493376,211.45,0.00016412,2]
[392507920,1761587493593,211.45,0.00017126,2]
[392507921,1761587493826,211.45,0.00017839,2]
[392507922,1761587494019,211.45,0.00018553,2]
[392507923,1761587494233,211.45,0.00019266,2]
[392507924,1761587494460,211.45,0.0001998,2]
[392507925,1761587494693,211.45,0.00020694,2]
[392507926,1761587494896,71.35887686,0.00021407,2]
[392507927,1761587708244,1851.614486,7.945e-05,2]
[392507937,1761588558619,405.43,0.00013699,2]
[392507938,1761588563265,-405.43,0.00020187,2]
[392507939,1761588563287,-150.0,0.00021407,2]
[392507940,1761588563309,-500.0,0.00021407,2]
[392507941,1761588563334,-140.09112314,0.00021407,2]
[392507942,1761588563358,-211.45,0.00022121,2]
[392507943,1761588563382,-151.0,0.0002214,2]
[392507944,1761588563403,-57.64296086,0.00022156,2]
[392507949,1761588631672,-151.0,0.00022198,2]
[392507950,1761588631682,-151.0,0.00022264,2]
[392507951,1761588631691,-151.0,0.0002242,2]
[392507952,1761588631701,-80.0543,0.00022537,2]
[392507953,1761588631713,-70.9457,0.00022537,2]
[392507954,1761588631722,-211.45,0.00022834,2]
[392507955,1761588631732,-160.19045936,0.00023448,2]
[392507956,1761588631742,-211.45,0.00023548,2]
[392507957,1761588631752,-211.45,0.00024261,2]
[392507958,1761588631761,-500.0,0.00024932,2]
[392507959,1761588631771,-211.45,0.00024975,2]
[392507960,1761588631781,-177.69,0.00025414,2]
[392507961,1761588631790,-211.45,0.00025688,2]
[392507962,1761588631799,-211.45,0.00026402,2]
[392507963,1761588631809,-405.43,0.00026676,2]
[392507964,1761588631819,-273.12459047,0.00026696,2]
[392507965,1761588631830,-500.0,0.000268,2]
[392507966,1761588631840,-179.55751785,0.000268,2]
[392507967,1761588631852,-320.44248215,0.000268,2]
[392507968,1761588631862,-300.0,0.0002705,2]
[392507969,1761588631872,-300.0,0.0002705,2]
[392507970,1761588631881,-1200.0,0.0002705,2]
[392507971,1761588631891,-7634.12,0.00027051,2]
[392507972,1761588631901,-368.56,0.00027069,2]
[392507973,1761588631911,-211.45,0.00027116,2]
[392507974,1761588631920,-3458.66,0.00027116,2]
[392507975,1761588631931,-500.0,0.00027348,2]
[392507976,1761588631941,-2000.0,0.00027348,2]
[392507977,1761588631950,-1000.0,0.000274,2]
[392507978,1761588631959,-455.48249586,0.00027546,2]
[392507979,1761588631968,-500.0,0.00027593,2]
[392507980,1761588631979,-500.0,0.00027593,2]